bitfinex/quotes_BTCUSD_20250615
["timestamp","ask_amount","ask_price","bid_price","bid_amount"]
[1749992197284,0.35897208,105410.0,105400.0,0.30263573]
[1749992197700,0.3684583,105410.0,105400.0,0.30263573]
[1749992198550,0.35897208,105410.0,105400.0,0.30263573]
[1749992199137,0.34948595,105410.0,105400.0,0.30263573]
[1749992200312,0.35897208,105410.0,105400.0,0.30263573]
[1749992201556,0.35897208,105410.0,105400.0,0.3843524]
[1749992201947,0.34948595,105410.0,105400.0,0.3843524]
[1749992202171,0.35897208,105410.0,105400.0,0.3843524]
[1749992202378,0.34948595,105410.0,105400.0,0.3843524]
[1749992202585,0.35897208,105410.0,105400.0,0.3843524]
[1749992202800,0.34948595,105410.0,105400.0,0.3843524]
[1749992203438,0.3684583,105410.0,105400.0,0.3843524]
[1749992203646,0.3779447,105410.0,105400.0,0.30263573]
[1749992203856,0.3684583,105410.0,105400.0,0.30263573]
[1749992204541,0.35897208,105410.0,105400.0,0.30263573]
[1749992206536,0.34948595,105410.0,105400.0,0.30263573]
[1749992206749,0.34,105410.0,105400.0,0.30263573]
[1749992208350,0.34948604,105410.0,105400.0,0.30263573]
[1749992208570,0.34,105410.0,105400.0,0.30263573]
[1749992208780,0.34948595,105410.0,105400.0,0.34047395]
[1749992209729,0.34948595,105410.0,105400.0,0.30263573]
[1749992210625,0.34,105410.0,105400.0,0.30263573]
[1749992215665,0.34948595,105410.0,105400.0,0.30263573]
[1749992216082,0.34,105410.0,105400.0,0.30263573]
[1749992221649,0.34,105410.0,105400.0,0.34049429]
[1749992221899,0.34,105410.0,105400.0,0.34051316]
[1749992222328,0.34,105410.0,105400.0,0.3026546]
[1749992222540,0.34948595,105410.0,105400.0,0.3026546]
[1749992223052,0.34,105410.0,105400.0,0.3026546]
[1749992225438,0.34948595,105410.0,105400.0,0.3026546]
[1749992226003,0.34948595,105410.0,105400.0,0.2852546]
[1749992226245,0.35897208,105410.0,105400.0,0.4234346]
[1749992227321,0.34948595,105410.0,105400.0,0.4234346]
[1749992227509,0.35897208,105410.0,105400.0,0.4234346]
[1749992228012,0.36845839,105410.0,105400.0,0.2687546]
[1749992228221,0.3684583,105410.0,105400.0,0.4234346]
[1749992229904,0.3684583,105410.0,105400.0,0.4583346]
[1749992230194,0.37794461,105410.0,105400.0,0.4583346]
[1749992230790,0.3874311,105410.0,105400.0,0.4583346]
[1749992231021,0.38743101,105410.0,105400.0,0.4583346]
[1749992231229,0.37794506,105410.0,105400.0,0.4583346]
[1749992231844,0.37794506,105410.0,105400.0,0.2868546]
[1749992231979,0.37794506,105410.0,105400.0,0.4415346]
[1749992232395,0.37794506,105410.0,105400.0,0.2868546]
[1749992232614,0.38743155,105410.0,105400.0,0.4415346]
[1749992233122,0.37794506,105410.0,105400.0,0.4415346]
[1749992236059,0.02845866,105410.0,105400.0,0.4415346]
[1749992236267,0.01897235,105410.0,105400.0,0.4588346]
[1749992236537,0.00948613,105410.0,105400.0,0.54065316]
[1749992237374,0.36845641,105420.0,105410.0,0.22768091]
[1749992237588,0.37794146,105420.0,105410.0,0.22768091]
[1749992238744,0.36845578,105420.0,105410.0,0.22768091]
[1749992239175,0.35897037,105420.0,105410.0,0.30440527]
[1749992240452,0.35897037,105420.0,105410.0,0.22768091]
[1749992240663,0.35897037,105420.0,105410.0,0.26268091]
[1749992241297,0.35897037,105420.0,105410.0,0.24528091]
[1749992241511,0.34,105420.0,105410.0,0.26268091]
[1749992241729,0.35444233,105430.0,105420.0,0.25317382]
[1749992241936,0.35444233,105430.0,105420.0,0.47402808]
[1749992242146,0.36392666,105430.0,105420.0,0.47402808]
[1749992242560,0.01896848,105430.0,105420.0,0.47402808]
[1749992243201,0.02096848,105430.0,105420.0,0.47402808]
[1749992243410,0.03045299,105430.0,105420.0,0.47402808]
[1749992243836,0.02096848,105430.0,105420.0,0.47402808]
[1749992244048,0.03045299,105430.0,105420.0,0.47402808]
[1749992244257,0.03045299,105430.0,105420.0,0.40781382]
[1749992244889,0.02096848,105430.0,105420.0,0.40781382]
[1749992245097,0.01148415,105430.0,105420.0,0.40781382]
[1749992245316,0.02096839,105430.0,105420.0,0.40781382]
[1749992245525,0.03045281,105430.0,105420.0,0.48664906]
[1749992245737,0.03045281,105430.0,105420.0,0.40781382]
[1749992245952,0.002,105430.0,105420.0,0.40781382]
[1749992249370,0.01148424,105430.0,105420.0,0.25317382]
[1749992249582,0.01148424,105430.0,105420.0,0.40781382]
[1749992250042,0.02096875,105430.0,105420.0,0.40781382]
[1749992252018,0.02096875,105430.0,105420.0,0.48664906]
[1749992252458,0.02096875,105430.0,105420.0,0.40781382]
[1749992257543,0.02096857,105430.0,105420.0,0.40781382]
[1749992257974,0.01148424,105430.0,105420.0,0.40781382]
[1749992260186,0.02096866,105430.0,105420.0,0.40781382]
[1749992260399,0.01148424,105430.0,105420.0,0.40781382]
[1749992260612,0.01148424,105430.0,105420.0,0.48949208]
[1749992261253,0.02096866,105430.0,105420.0,0.48949208]
[1749992261511,0.002,105430.0,105420.0,0.48949208]
[1749992261726,0.01148415,105430.0,105420.0,0.48949208]
[1749992261945,0.02096848,105430.0,105420.0,0.48949208]
[1749992262193,0.01148415,105430.0,105420.0,0.33485208]
[1749992262416,0.02096848,105430.0,105420.0,0.48945208]
[1749992262639,0.02096848,105430.0,105420.0,0.40777382]
[1749992262864,0.01148415,105430.0,105420.0,0.40777382]
[1749992264005,0.002,105430.0,105420.0,0.40777382]
[1749992264699,0.002,105430.0,105420.0,0.50401558]
[1749992265641,0.002,105430.0,105420.0,0.53244572]
[1749992265869,0.002,105430.0,105420.0,0.62190183]
[1749992267024,0.002,105430.0,105420.0,0.62183887]
[1749992267405,0.002,105430.0,105420.0,0.46723887]
[1749992267625,0.002,105430.0,105420.0,0.37778276]
[1749992267972,0.002,105430.0,105420.0,0.53238276]
[1749992268321,0.002,105430.0,105420.0,0.57024132]
[1749992268711,0.002,105430.0,105420.0,0.54187414]
[1749992268921,0.002,105430.0,105420.0,0.72257777]
[1749992269195,0.002,105430.0,105420.0,0.51134602]
[1749992269426,0.26593993,105450.0,105440.0,0.21813243]
[1749992269671,0.28243993,105450.0,105440.0,0.37273243]
[1749992270045,0.26593984,105450.0,105440.0,0.37273243]
[1749992270380,0.27542255,105450.0,105440.0,0.37273243]
[1749992270565,0.27551246,105450.0,105440.0,0.37273243]
[1749992273573,0.27551246,105450.0,105440.0,0.21813243]
[1749992273816,0.28499535,105450.0,105440.0,0.37273243]
[1749992274018,0.29447833,105450.0,105440.0,0.37273243]
[1749992274840,0.28499535,105450.0,105440.0,0.37273243]
[1749992275804,0.29447833,105450.0,105440.0,0.37273243]
[1749992276018,0.00948352,105440.0,105430.0,0.2717167]
[1749992276226,0.02845101,105440.0,105430.0,0.23701724]
[1749992276438,0.01896875,105430.0,105420.0,0.37115296]
[1749992276645,0.01896875,105430.0,105420.0,0.40113787]
[1749992277474,0.02845353,105430.0,105420.0,0.41062373]
[1749992277674,0.02845317,105430.0,105420.0,0.42455387]
[1749992277809,0.03793795,105430.0,105420.0,0.26995387]
[1749992278018,0.02845317,105430.0,105420.0,0.41062373]
[1749992278230,0.02845317,105430.0,105420.0,0.41162373]
[1749992278586,0.02845317,105430.0,105420.0,0.38325941]
[1749992278772,0.02845317,105430.0,105420.0,0.38525941]
[1749992278982,0.03793795,105430.0,105420.0,0.38525941]
[1749992279616,0.03793786,105430.0,105420.0,0.38525941]
[1749992280060,0.04742264,105430.0,105420.0,0.23065941]
[1749992280260,0.04742264,105430.0,105420.0,0.38525941]
[1749992281646,0.23695339,105430.0,105420.0,0.21168877]
[1749992281855,0.27359945,105430.0,105420.0,0.003]
[1749992282075,0.24536879,105430.0,105420.0,0.003]
[1749992282290,0.24536879,105430.0,105420.0,0.1576]
[1749992282506,0.24536879,105430.0,105420.0,0.003]
[1749992282744,0.24536879,105430.0,105420.0,0.16708586]
[1749992282949,0.24536879,105430.0,105420.0,0.16508586]
[1749992283584,0.24536879,105430.0,105420.0,0.16408586]
[1749992284002,0.24536879,105430.0,105420.0,0.36328895]
[1749992284663,0.22746879,105430.0,105420.0,0.36328895]
[1749992285329,0.03794506,105410.0,105400.0,0.21821495]
[1749992285512,0.03794506,105410.0,105400.0,0.37281495]
[1749992285918,0.03794497,105410.0,105400.0,0.37281495]
[1749992286695,0.03803482,105410.0,105400.0,0.21821495]
[1749992286919,0.03803482,105410.0,105400.0,0.37881495]
[1749992288654,0.0475214,105410.0,105400.0,0.22421495]
[1749992288863,0.0475214,105410.0,105400.0,0.37881495]
[1749992289827,0.03803482,105410.0,105400.0,0.37881495]
[1749992290340,0.01906193,105410.0,105400.0,0.39711495]
[1749992290683,0.01906193,105410.0,105400.0,0.48131129]
[1749992291133,8.985e-05,105410.0,105400.0,0.41411495]
[1749992292152,8.985e-05,105410.0,105400.0,0.51035671]
[1749992298543,0.0095758,105410.0,105400.0,0.51035671]
[1749992299142,0.01906202,105410.0,105400.0,0.51035671]
[1749992299692,0.02854842,105410.0,105400.0,0.51035671]
[1749992299882,0.01906202,105410.0,105400.0,0.51035671]
[1749992300092,0.02854833,105410.0,105400.0,0.51035671]
[1749992300334,0.0095758,105410.0,105400.0,0.59287322]
[1749992300576,0.01906184,105410.0,105400.0,0.59287322]
[1749992300813,0.0095758,105410.0,105400.0,0.59287322]
[1749992301009,8.985e-05,105410.0,105400.0,0.59287322]
[1749992301214,0.02854815,105410.0,105400.0,0.25951495]
[1749992301373,0.02854806,105410.0,105400.0,0.41411495]
[1749992302085,0.02854806,105410.0,105400.0,0.48032137]
[1749992302318,0.03803437,105410.0,105400.0,0.45194719]
[1749992302486,0.03803437,105410.0,105400.0,0.41411495]
[1749992303099,0.02854806,105410.0,105400.0,0.41411495]
[1749992303307,0.02766806,105410.0,105400.0,0.41411495]
[1749992303742,0.02766806,105410.0,105400.0,0.44248913]
[1749992304156,0.02766806,105410.0,105400.0,0.28788913]
[1749992304365,0.02766806,105410.0,105400.0,0.44248913]
[1749992304834,0.02766806,105410.0,105400.0,0.52200211]
[1749992305323,0.02766806,105410.0,105400.0,0.28788913]
[1749992305576,0.03715437,105410.0,105400.0,0.40718913]
[1749992306323,0.02766806,105410.0,105400.0,0.42478913]
[1749992307243,0.03715437,105410.0,105400.0,0.27018913]
[1749992307689,0.03715437,105410.0,105400.0,0.42478913]
[1749992307911,0.04664086,105410.0,105400.0,0.42478913]
[1749992308337,0.04664086,105410.0,105400.0,0.35135095]
[1749992308553,0.04664086,105410.0,105400.0,0.50595095]
[1749992308763,0.04664086,105410.0,105400.0,0.35135095]
[1749992308981,0.04664086,105410.0,105400.0,0.50591095]
[1749992310242,0.03715437,105410.0,105400.0,0.50591095]
[1749992311782,0.02766806,105410.0,105400.0,0.50591095]
[1749992312016,0.03715446,105410.0,105400.0,0.50591095]
[1749992312266,0.02766806,105410.0,105400.0,0.50591095]
[1749992313207,0.02766806,105410.0,105400.0,0.52311095]
[1749992313625,0.56608888,105420.0,105410.0,0.2087082]
[1749992313844,0.57562168,105420.0,105410.0,0.19922189]
[1749992314058,0.57562168,105420.0,105410.0,0.20870838]
[1749992314501,0.57562168,105420.0,105410.0,0.22615326]
[1749992314785,0.57562168,105420.0,105410.0,0.22715326]
[1749992315211,0.57562168,105420.0,105410.0,0.22915326]
[1749992317297,0.59352168,105420.0,105410.0,0.22915326]
[1749992318321,0.57562168,105420.0,105410.0,0.23863957]
[1749992319082,0.55822168,105420.0,105410.0,0.23863957]
[1749992319875,0.55822168,105420.0,105410.0,0.24812579]
[1749992321204,0.55822168,105420.0,105410.0,0.23068091]
[1749992321482,0.57632168,105420.0,105410.0,0.37575469]
[1749992321905,0.57632168,105420.0,105410.0,0.38524091]
[1749992323965,0.57632168,105420.0,105410.0,0.37575469]
[1749992324175,0.57632168,105420.0,105410.0,0.36626838]
[1749992324789,0.57632168,105420.0,105410.0,0.44103606]
[1749992325183,0.55822168,105420.0,105410.0,0.45052246]
[1749992325396,0.55822168,105420.0,105410.0,0.46000877]
[1749992326766,0.55822168,105420.0,105410.0,0.38524109]
[1749992326975,0.55822168,105420.0,105410.0,0.39472731]
[1749992327916,0.55822168,105420.0,105410.0,0.38524109]
[1749992328070,0.55822168,105420.0,105410.0,0.37575478]
[1749992329992,0.54873627,105420.0,105410.0,0.37575478]
[1749992334115,0.53925059,105420.0,105410.0,0.35678189]
[1749992336471,0.53925059,105420.0,105410.0,0.36626838]
[1749992337675,0.53925059,105420.0,105410.0,0.37575478]
[1749992342277,0.53925059,105420.0,105410.0,0.39325478]
[1749992342710,0.53925059,105420.0,105410.0,0.41205478]
[1749992343936,0.36850398,105420.0,105410.0,0.42154091]
[1749992344129,0.37798984,105420.0,105410.0,0.42154091]
[1749992344382,0.56770716,105420.0,105410.0,0.4888814]
[1749992344829,0.56770716,105420.0,105410.0,0.49836771]
[1749992345044,0.35901776,105420.0,105410.0,0.50785384]
[1749992345282,0.36850326,105420.0,105410.0,0.50785384]
[1749992345499,0.36850326,105420.0,105410.0,0.43102722]
[1749992345925,0.37798894,105420.0,105410.0,0.43102722]
[1749992347859,0.38747552,105420.0,105410.0,0.43102722]
[1749992348299,0.36850389,105420.0,105410.0,0.43102722]
[1749992348526,0.57612166,105420.0,105410.0,0.36622874]
[1749992348740,0.23612166,105420.0,105410.0,0.22119532]
[1749992348955,0.23612166,105420.0,105410.0,0.37571532]
[1749992352508,0.55822166,105420.0,105410.0,0.37571532]
[1749992352933,0.3931156,105420.0,105410.0,0.37571532]
[1749992353631,0.3931156,105420.0,105410.0,0.38520181]
[1749992357384,0.3931156,105420.0,105410.0,0.37571532]
[1749992358030,0.4114156,105420.0,105410.0,0.37571532]
[1749992358450,0.4114156,105420.0,105410.0,0.22119532]
[1749992358661,0.40192983,105420.0,105410.0,0.15752]
[1749992358870,0.40192983,105420.0,105410.0,0.35674198]
[1749992359302,0.40192983,105420.0,105410.0,0.35574198]
[1749992359510,0.40192983,105420.0,105410.0,0.35374198]
[1749992359723,0.40292983,105420.0,105410.0,0.35374198]
[1749992363297,0.40292983,105420.0,105410.0,0.19922198]
[1749992363502,0.38462983,105420.0,105410.0,0.35370198]
[1749992364752,0.0094864,105410.0,105400.0,0.28294017]
[1749992364970,0.02845947,105410.0,105400.0,0.44690828]
[1749992366103,0.02845947,105410.0,105400.0,0.44790828]
[1749992366325,0.02845947,105410.0,105400.0,0.44890828]
[1749992366536,0.03794578,105410.0,105400.0,0.44890828]
[1749992367460,0.01897253,105410.0,105400.0,0.44890828]
[1749992368781,0.01897217,105410.0,105400.0,0.44890828]
[1749992369201,0.01897208,105410.0,105400.0,0.44890828]
[1749992369838,0.07144663,105440.0,105430.0,0.25395312]
[1749992370064,0.028514,105440.0,105430.0,0.50467488]
[1749992370491,0.58697496,105450.0,105440.0,0.25393243]
[1749992370704,0.58697496,105450.0,105440.0,0.35017419]
[1749992371145,0.59587726,105450.0,105440.0,0.3679315]
[1749992371358,0.58697496,105450.0,105440.0,0.3679315]
[1749992371572,0.59587726,105450.0,105440.0,0.3679315]
[1749992371816,0.59592466,105450.0,105440.0,0.36793146]
[1749992372021,0.58702236,105450.0,105440.0,0.36893145]
[1749992372230,0.59592466,105450.0,105440.0,0.36893146]
[1749992372440,0.59592466,105450.0,105440.0,0.36893145]
[1749992372860,0.59592466,105450.0,105440.0,0.35117419]
[1749992373088,0.59592466,105450.0,105440.0,0.35217419]
[1749992373301,0.58702236,105450.0,105440.0,0.35217419]
[1749992373733,0.5965048,105450.0,105440.0,0.35217419]
[1749992373935,0.58702236,105450.0,105440.0,0.35217419]
[1749992374147,0.59650471,105450.0,105440.0,0.35217419]
[1749992375246,0.58702236,105450.0,105440.0,0.35217419]
[1749992375454,0.5965048,105450.0,105440.0,0.35217419]
[1749992376828,0.60598742,105450.0,105440.0,0.35217419]
[1749992377045,0.60598733,105450.0,105440.0,0.35217419]
[1749992377450,0.5965048,105450.0,105440.0,0.35217419]
[1749992377650,0.58702236,105450.0,105440.0,0.4237064]
[1749992377881,0.59650471,105450.0,105440.0,0.44138119]
[1749992378080,0.59650471,105450.0,105440.0,0.4237064]
[1749992378365,0.60540617,105450.0,105440.0,0.4237064]
[1749992378577,0.59592382,105450.0,105440.0,0.44145568]
[1749992378804,0.5965048,105450.0,105440.0,0.36992347]
[1749992378964,0.5965048,105450.0,105440.0,0.35217419]
[1749992379169,0.5965048,105450.0,105440.0,0.36992091]
[1749992379369,0.59650471,105450.0,105440.0,0.36992106]
[1749992379618,0.59650471,105450.0,105440.0,0.36992108]
[1749992379815,0.59650471,105450.0,105440.0,0.35217419]
[1749992380021,0.59650471,105450.0,105440.0,0.36992109]
[1749992380618,0.59650471,105450.0,105440.0,0.35217419]
[1749992380821,0.59650471,105450.0,105440.0,0.36992109]
[1749992381692,0.59650471,105450.0,105440.0,0.36992108]
[1749992381900,0.59650471,105450.0,105440.0,0.3699211]
[1749992382768,0.59650471,105450.0,105440.0,0.35217419]
[1749992384059,0.58760216,105450.0,105440.0,0.35217419]
[1749992384243,0.59708469,105450.0,105440.0,0.35217419]
[1749992386298,0.58760216,105450.0,105440.0,0.35217419]
[1749992386711,0.59708469,105450.0,105440.0,0.35217419]
[1749992387280,0.58760216,105450.0,105440.0,0.35217419]
[1749992387697,0.59708469,105450.0,105440.0,0.35217419]
[1749992389633,0.60656722,105450.0,105440.0,0.35217419]
[1749992390495,0.5970846,105450.0,105440.0,0.35217419]
[1749992390934,0.60656713,105450.0,105440.0,0.35217419]
[1749992394453,0.61604993,105450.0,105440.0,0.35217419]
[1749992394742,0.62553354,105450.0,105440.0,0.39227234]
[1749992394980,0.60656758,105450.0,105440.0,0.42075577]
[1749992395212,0.61605056,105450.0,105440.0,0.42075577]
[1749992395458,0.60656758,105450.0,105440.0,0.41875577]
[1749992395674,0.61705056,105450.0,105440.0,0.41875577]
[1749992395885,0.61605056,105450.0,105440.0,0.41875577]
[1749992396310,0.61705056,105450.0,105440.0,0.41875577]
[1749992396531,0.61705056,105450.0,105440.0,0.44139976]
[1749992396738,0.62653363,105450.0,105440.0,0.44139976]
[1749992396952,0.62753363,105450.0,105440.0,0.44139976]
[1749992397386,0.62653363,105450.0,105440.0,0.44139976]
[1749992397614,0.62753435,105450.0,105440.0,0.43191633]
[1749992397852,0.80771516,105450.0,105440.0,0.43191633]
[1749992400244,0.82564938,105450.0,105440.0,0.02264399]
[1749992400471,5.88453579,105450.0,105440.0,0.02264399]
[1749992400687,0.01896893,105430.0,105420.0,0.48585977]
[1749992400905,0.00948433,105430.0,105420.0,0.56702175]
[1749992401152,0.01896857,105430.0,105420.0,0.55753607]
[1749992401377,0.02845281,105430.0,105420.0,0.53260346]
[1749992401588,0.02845281,105430.0,105420.0,0.64526641]
[1749992401817,0.02845281,105430.0,105420.0,0.64826641]
[1749992402035,0.02845281,105430.0,105420.0,0.65026641]
[1749992402253,0.03793741,105430.0,105420.0,0.65026641]
[1749992402712,0.02845281,105430.0,105420.0,0.62197091]
[1749992402926,0.02845281,105430.0,105420.0,0.65026641]
[1749992403142,0.03793741,105430.0,105420.0,0.65026641]
[1749992403585,0.02845281,105430.0,105420.0,0.65026641]
[1749992403833,0.03793741,105430.0,105420.0,0.65026641]
[1749992404078,0.00948415,105430.0,105420.0,0.65026641]
[1749992404298,0.3678699,105440.0,105430.0,0.23675312]
[1749992404535,0.35896749,105440.0,105430.0,0.3453438]
[1749992404765,0.36845146,105440.0,105430.0,0.25945039]
[1749992404983,0.37793552,105440.0,105430.0,0.25945039]
[1749992405195,0.56761685,105440.0,105430.0,0.25945057]
[1749992405624,0.55813324,105440.0,105430.0,0.25945057]
[1749992405844,0.55813324,105440.0,105430.0,0.26045057]
[1749992406067,0.55813324,105440.0,105430.0,0.26145057]
[1749992406732,0.55813324,105440.0,105430.0,0.24285057]
[1749992406947,0.55813324,105440.0,105430.0,0.23336606]
[1749992408494,0.55813324,105440.0,105430.0,0.24285057]
[1749992411372,0.55813324,105440.0,105430.0,0.22388146]
[1749992411623,0.54864936,105440.0,105430.0,0.23336624]
[1749992411850,0.54864936,105440.0,105430.0,0.24285093]
[1749992412515,0.53916539,105440.0,105430.0,0.24285093]
[1749992412988,0.53916539,105440.0,105430.0,0.25233553]
[1749992413862,0.53916539,105440.0,105430.0,0.24285093]
[1749992418738,0.53916539,105440.0,105430.0,0.25233553]
[1749992420074,0.53916539,105440.0,105430.0,0.02469727]
[1749992420291,0.54838133,105440.0,105430.0,0.02469727]
[1749992421612,0.54838133,105440.0,105430.0,0.002]
[1749992421826,0.52968133,105440.0,105430.0,0.002]
[1749992424653,0.52968133,105440.0,105430.0,0.02469324]
[1749992425334,0.18968133,105440.0,105430.0,0.002]
[1749992426195,0.18968133,105440.0,105430.0,0.01148496]
[1749992426411,0.18968133,105440.0,105430.0,0.002]
[1749992426846,0.18968133,105440.0,105430.0,0.02469907]
[1749992427979,0.18968133,105440.0,105430.0,0.002]
[1749992428649,0.18968133,105440.0,105430.0,0.02470809]
[1749992428878,0.22788133,105440.0,105430.0,0.02470809]
[1749992429105,0.22788133,105440.0,105430.0,0.002]
[1749992429767,5.27788133,105440.0,105430.0,0.002]
[1749992429981,5.2867786,105440.0,105430.0,0.002]
[1749992430231,5.28677862,105440.0,105430.0,0.002]
[1749992430452,5.28677863,105440.0,105430.0,0.001]
[1749992430741,5.62677863,105440.0,105430.0,0.001]
[1749992430990,5.82301863,105440.0,105430.0,0.001]
[1749992431237,5.81807685,105440.0,105430.0,0.001]
[1749992431696,0.1991841,105430.0,105420.0,0.23657268]
[1749992431940,0.1991841,105430.0,105420.0,0.25928429]
[1749992432175,0.1991841,105430.0,105420.0,0.27838429]
[1749992433111,0.2001841,105430.0,105420.0,0.27838429]
[1749992433701,0.20966879,105430.0,105420.0,0.27838429]
[1749992433923,0.001,105430.0,105420.0,0.63265743]
[1749992434149,0.002,105430.0,105420.0,0.63265743]
[1749992434594,0.001,105430.0,105420.0,0.63265743]
[1749992434843,0.58307799,105450.0,105440.0,0.25583243]
[1749992435103,0.58307799,105450.0,105440.0,0.29629326]
[1749992435347,0.59197947,105450.0,105440.0,0.34274143]
[1749992435574,0.58307799,105450.0,105440.0,0.34274]
[1749992435795,0.58307799,105450.0,105440.0,0.34273974]
[1749992436012,0.58307799,105450.0,105440.0,0.34274014]
[1749992436236,0.58307799,105450.0,105440.0,0.34274009]
[1749992436452,0.59256043,105450.0,105440.0,0.34274008]
[1749992436688,0.58807799,105450.0,105440.0,0.34274009]
[1749992436907,0.59756034,105450.0,105440.0,0.34274009]
[1749992437123,0.59756034,105450.0,105440.0,0.32499252]
[1749992437796,0.58807799,105450.0,105440.0,0.34274009]
[1749992438018,0.58807799,105450.0,105440.0,0.3427401]
[1749992438459,0.58807799,105450.0,105440.0,0.36048766]
[1749992438693,0.59756043,105450.0,105440.0,0.3427401]
[1749992438911,0.58807799,105450.0,105440.0,0.3427401]
[1749992439130,0.58807799,105450.0,105440.0,0.36048769]
[1749992440090,0.58807799,105450.0,105440.0,0.3427401]
[1749992441107,0.59756034,105450.0,105440.0,0.3427401]
[1749992441926,0.58807799,105450.0,105440.0,0.3427401]
[1749992442217,0.59756034,105450.0,105440.0,0.3427401]
[1749992442886,0.60704287,105450.0,105440.0,0.3427401]
[1749992443092,0.59756034,105450.0,105440.0,0.3427401]
[1749992444327,0.58807799,105450.0,105440.0,0.3427401]
[1749992444544,0.60704278,105450.0,105440.0,0.29629162]
[1749992445957,0.26704278,105450.0,105440.0,0.29629162]
[1749992448948,0.2765254,105450.0,105440.0,0.29629162]
[1749992449612,0.26704278,105450.0,105440.0,0.29629162]
[1749992450499,0.25756034,105450.0,105440.0,0.29629162]
[1749992451822,0.26704278,105450.0,105440.0,0.29629162]
[1749992452494,0.25756034,105450.0,105440.0,0.29629162]
[1749992452767,0.25756034,105450.0,105440.0,0.37262421]
[1749992453451,0.26704287,105450.0,105440.0,0.37262421]
[1749992453900,0.26704278,105450.0,105440.0,0.37262421]
[1749992454773,0.27652531,105450.0,105440.0,0.29629162]
[1749992458110,0.26704278,105450.0,105440.0,0.29629162]
[1749992459955,0.24807799,105450.0,105440.0,0.29629162]
[1749992460184,0.24807799,105450.0,105440.0,0.39253338]
[1749992461583,0.24607799,105450.0,105440.0,0.42092592]
[1749992461796,0.24707799,105450.0,105440.0,0.42092592]
[1749992462024,0.24407799,105450.0,105440.0,0.42092592]
[1749992462239,0.24407799,105450.0,105440.0,0.51066039]
[1749992462462,0.24507799,105450.0,105440.0,0.51066039]
[1749992462675,0.24507799,105450.0,105440.0,0.54843744]
[1749992464110,0.24507799,105450.0,105440.0,0.5200449]
[1749992464558,0.24507799,105450.0,105440.0,0.54842551]
[1749992465227,0.24507799,105450.0,105440.0,0.5200449]
[1749992465728,0.22842993,105450.0,105440.0,0.5200449]
[1749992466164,0.22842993,105450.0,105440.0,0.57671048]
[1749992466378,0.22347175,105450.0,105440.0,0.57671048]
[1749992466825,0.22347175,105450.0,105440.0,0.59125133]
[1749992467069,0.0020474,105450.0,105440.0,0.59331428]
[1749992467281,0.0020474,105450.0,105440.0,0.61220281]
[1749992467497,0.0020474,105450.0,105440.0,0.95220281]
[1749992467716,0.0010474,105450.0,105440.0,0.95220281]
[1749992468145,4.74e-05,105450.0,105440.0,0.95320281]
[1749992468368,4.74e-05,105450.0,105440.0,0.95220281]
[1749992468572,0.0158462,105470.0,105460.0,0.27093191]
[1749992468779,0.0158462,105470.0,105460.0,0.65825419]
[1749992468994,0.0158462,105470.0,105460.0,0.62994515]
[1749992469426,0.0158462,105470.0,105460.0,0.53220323]
[1749992469646,0.0158462,105470.0,105460.0,0.49445784]
[1749992469865,0.0158462,105470.0,105460.0,0.48420114]
[1749992470101,0.0158462,105470.0,105460.0,0.44132132]
[1749992470309,0.02532684,105470.0,105460.0,0.49140443]
[1749992470525,0.02532676,105470.0,105460.0,0.49140443]
[1749992470743,0.02532676,105470.0,105460.0,0.37674443]
[1749992470970,0.02532676,105470.0,105460.0,0.53110443]
[1749992471390,0.0158462,105470.0,105460.0,0.53610443]
[1749992471609,0.0158462,105470.0,105460.0,0.57471496]
[1749992471862,0.0158462,105470.0,105460.0,0.53410443]
[1749992472072,0.02532684,105470.0,105460.0,0.37974443]
[1749992472283,0.0158462,105470.0,105460.0,0.53430443]
[1749992472493,0.0158462,105470.0,105460.0,0.53630443]
[1749992472704,0.02532684,105470.0,105460.0,0.53630443]
[1749992472920,0.0158462,105470.0,105460.0,0.53630443]
[1749992473153,0.0158462,105470.0,105460.0,0.61362407]
[1749992473567,0.0158462,105470.0,105460.0,0.45906407]
[1749992473774,0.0158462,105470.0,105460.0,0.61358407]
[1749992475136,0.02532676,105470.0,105460.0,0.61358407]
[1749992475792,0.02532676,105470.0,105460.0,0.53626443]
[1749992476220,0.04428822,105470.0,105460.0,0.53626443]
[1749992476433,0.04428822,105470.0,105460.0,0.51636443]
[1749992476640,0.0348074,105470.0,105460.0,0.51636443]
[1749992476848,0.0348074,105470.0,105460.0,0.36184443]
[1749992477060,0.0348074,105470.0,105460.0,0.51632443]
[1749992477275,0.05376949,105470.0,105460.0,0.49648443]
[1749992477482,0.04428831,105470.0,105460.0,0.49648443]
[1749992477691,0.04428822,105470.0,105460.0,0.49648443]
[1749992477911,0.02532676,105470.0,105460.0,0.49648443]
[1749992478134,0.0348074,105470.0,105460.0,0.51638443]
[1749992478338,0.0158462,105470.0,105460.0,0.51638443]
[1749992478543,0.0158462,105470.0,105460.0,0.59369207]
[1749992478755,0.02532676,105470.0,105460.0,0.61345207]
[1749992479002,0.0158462,105470.0,105460.0,0.61345207]
[1749992479479,0.02532684,105470.0,105460.0,0.61345207]
[1749992479940,0.0158462,105470.0,105460.0,0.61345207]
[1749992480172,0.02532676,105470.0,105460.0,0.61345207]
[1749992480385,0.03480749,105470.0,105460.0,0.53614443]
[1749992480594,0.0348074,105470.0,105460.0,0.53614443]
[1749992480809,0.0348074,105470.0,105460.0,0.51634443]
[1749992481877,0.04428822,105470.0,105460.0,0.51634443]
[1749992482107,0.0348074,105470.0,105460.0,0.51634443]
[1749992482337,0.04428813,105470.0,105460.0,0.51634443]
[1749992483682,0.04428813,105470.0,105460.0,0.34204443]
[1749992483899,0.05376904,105470.0,105460.0,0.49644443]
[1749992484120,0.06325022,105470.0,105460.0,0.49644443]
[1749992484596,0.06325013,105470.0,105460.0,0.49644443]
[1749992485017,0.08175075,105470.0,105460.0,0.49644443]
[1749992485225,0.07226957,105470.0,105460.0,0.57362807]
[1749992485434,0.06278848,105470.0,105460.0,0.57362807]
[1749992486069,0.03480757,105470.0,105460.0,0.57362807]
[1749992486525,0.05376975,105470.0,105460.0,0.57362807]
[1749992486959,0.28179776,105470.0,105460.0,0.23632113]
[1749992487217,0.26283603,105470.0,105460.0,0.36820943]
[1749992487426,0.26283603,105470.0,105460.0,0.21360943]
[1749992487842,0.26283603,105470.0,105460.0,0.21060943]
[1749992488057,0.26283603,105470.0,105460.0,0.20860943]
[1749992488274,0.26283603,105470.0,105460.0,0.21060943]
[1749992488695,0.07320865,105470.0,105460.0,0.27746929]
[1749992488905,0.08269001,105470.0,105460.0,0.27746929]
[1749992489113,0.08269001,105470.0,105460.0,0.30012973]
[1749992489324,0.0533082,105470.0,105460.0,0.30012973]
[1749992489534,0.07227002,105470.0,105460.0,0.30012973]
[1749992490391,0.27137876,105470.0,105460.0,0.45464991]
[1749992490598,0.27137876,105470.0,105460.0,0.46413163]
[1749992490809,0.08175138,105470.0,105460.0,0.47361326]
[1749992491262,0.07227002,105470.0,105460.0,0.47361326]
[1749992492968,0.06278884,105470.0,105460.0,0.47361326]
[1749992494065,0.07227002,105470.0,105460.0,0.47361326]